fUSD/lending_fUSD_20240404
["ID","MTS","AMOUNT","RATE_DAILY","PERIOD"]
[321491485,1712239874439,-500.0,0.00049589,120]
[321491486,1712239874449,-500.0,0.00049589,120]
[321491487,1712239874460,-500.0,0.00049589,120]
[321491488,1712239874469,-500.0,0.00049589,120]
[321491489,1712239874478,-500.0,0.00049589,120]
[321491490,1712239874487,-500.0,0.00049589,120]
[321491491,1712239874498,-717.27,0.00049589,120]
[321491492,1712239874509,-500.0,0.00049589,120]
[321491493,1712239874518,-500.0,0.00049589,120]
[321491494,1712239874527,-500.0,0.00049589,120]
[321491495,1712239874536,-500.0,0.00049589,120]
[321491496,1712239874546,-500.0,0.00049589,120]
[321491497,1712239874555,-716.31,0.00049589,120]
[321491498,1712239874565,-553.07,0.00049589,120]
[321491499,1712239874574,-588.01,0.00049589,120]
[321491500,1712239874584,-508.29578167,0.00049589,120]
[321491501,1712239874593,-500.0,0.00049589,120]
[321491502,1712239874602,-500.0,0.00049589,120]
[321491503,1712239874612,-500.0,0.00049589,120]
[321491504,1712239874621,-500.0,0.00049589,120]
[321491505,1712239874631,-500.0,0.00049589,120]
[321491506,1712239874641,-500.0,0.00049589,120]
[321491507,1712239874650,-917.77,0.00049589,120]
[321491508,1712239874666,-504.54413197,0.00049589,120]
[321491509,1712239874675,-473.2284858,0.00049589,120]
[321491510,1712239874685,-608.36157281,0.00049589,120]
[321491511,1712239874694,-517.57649914,0.00049589,120]
[321491512,1712239874707,-500.0,0.00049589,120]
[321491513,1712239874716,-500.0,0.00049589,120]
[321491514,1712239874726,-518.12422706,0.00049589,120]
[321491515,1712239874736,-500.0,0.00049589,120]
[321491516,1712239874746,-500.0,0.00049589,120]
[321491517,1712239874755,-500.0,0.00049589,120]
[321491518,1712239874766,-505.60928866,0.00049589,120]
[321491519,1712239874775,-581.55,0.00049589,120]
[321491520,1712239874784,-500.0,0.00049589,120]
[321491521,1712239874793,-533.50688495,0.00049589,120]
[321491522,1712239874803,-631.14,0.00049589,120]
[321491523,1712239874812,-500.0,0.00049589,120]
[321491524,1712239874821,-500.0,0.00049589,120]
[321491525,1712239874830,-611.41701532,0.00049589,120]
[321491526,1712239874840,-637.01861883,0.00049589,120]
[321491527,1712239874850,-500.0,0.00049589,120]
[321491528,1712239874859,-503.80107304,0.00049589,120]
[321491529,1712239874869,-257.20150308,0.00049589,2]
[321491530,1712239874879,-500.0,0.00049589,120]
[321491531,1712239874889,-500.0,0.00049589,120]
[321491532,1712239874898,-500.0,0.00049589,120]
[321491533,1712239874909,-500.0,0.00049589,120]
[321491534,1712239874919,-500.0,0.00049589,120]
[321491535,1712239874930,-736.38,0.00049589,120]
[321491536,1712239874939,-500.0,0.00049589,120]
[321491537,1712239875033,-500.0,0.00049589,120]
[321491538,1712239875043,-500.0,0.00049589,120]
[321491539,1712239875053,-500.0,0.00049589,120]
[321491540,1712239875062,-859.9,0.00049589,120]
[321491541,1712239875072,-1028.63,0.00049589,120]
[321491542,1712239875081,-500.0,0.00049589,120]
[321491543,1712239875090,-500.44594668,0.00049589,120]
[321491544,1712239875099,-532.45181064,0.00049589,120]
[321491545,1712239875109,-500.0,0.00049589,120]
[321491546,1712239875118,-581.15,0.00049589,120]
[321491547,1712239875127,-500.0,0.00049589,120]
[321491548,1712239875137,-500.0,0.00049589,120]
[321491549,1712239875145,-500.0,0.00049589,120]
[321491550,1712239875155,-526.88295183,0.00049589,120]
[321491551,1712239875164,-500.0,0.00049589,120]
[321491552,1712239875173,-500.0,0.00049589,120]
[321491553,1712239875182,-500.0,0.00049589,120]
[321491554,1712239875191,-500.0,0.00049589,120]
[321491555,1712239875200,-515.21338681,0.00049589,15]
[321491556,1712239875209,-890.74,0.00049589,120]
[321491557,1712239875218,-768.51,0.00049589,120]
[321491558,1712239875227,-500.0,0.00049589,120]
[321491559,1712239875236,-500.0,0.00049589,120]
[321491560,1712239875245,-500.0,0.00049589,120]
[321491561,1712239875254,-500.0,0.00049589,120]
[321491562,1712239875267,-500.0,0.00049589,120]
[321491563,1712239875276,-500.0,0.00049589,120]
[321491564,1712239875286,-500.0,0.00049589,120]
[321491565,1712239875295,-869.16,0.00049589,120]
[321491566,1712239875304,-500.0,0.00049589,120]
[321491567,1712239875313,-497.38786345,0.00049589,120]
[321491568,1712239875322,-515.1950196,0.00049589,120]
[321491569,1712239875331,-1705.61,0.00049589,2]
[321491570,1712239875340,-500.0,0.00049589,120]
[321491571,1712239875349,-500.0,0.00049589,120]
[321491572,1712239875358,-518.15077295,0.00049589,120]
[321491573,1712239875367,-500.0,0.00049589,120]
[321491574,1712239875377,-500.0,0.00049589,120]
[321491575,1712239875387,-500.0,0.00049589,120]
[321491576,1712239875395,-500.0,0.00049589,120]
[321491577,1712239875405,-823.61,0.00049589,120]
[321491578,1712239875414,-524.86146373,0.00049589,120]
[321491579,1712239875423,-500.0,0.00049589,120]
[321491580,1712239875433,-669.56,0.00049589,120]
[321491581,1712239875442,-500.0,0.00049589,120]
[321491582,1712239875451,-600.0,0.00049589,2]
[321491583,1712239875460,-1003.7,0.00049589,120]
[321491584,1712239875469,-551.91174797,0.00049589,120]
[321491585,1712239875479,-500.0,0.00049589,120]
[321491586,1712239875488,-500.0,0.00049589,120]
[321491587,1712239875498,-766.32,0.00049589,120]
[321491588,1712239875507,-698.69,0.00049589,120]
[321491589,1712239875519,-500.0,0.00049589,120]
[321491590,1712239875528,-500.0,0.00049589,120]
[321491591,1712239875537,-824.08,0.00049589,120]
[321491592,1712239875546,-500.0,0.00049589,120]
[321491593,1712239875556,-487.65811799,0.00049589,120]
[321491594,1712239875565,-500.0,0.00049589,120]
[321491595,1712239875575,-500.0,0.00049589,120]
[321491596,1712239875584,-599.72,0.00049589,120]
[321491597,1712239875593,-957.06310688,0.00049589,2]
[321491598,1712239875602,-514.35052322,0.00049589,120]
[321491599,1712239875611,-500.0,0.00049589,120]
[321491600,1712239875620,-1438.14,0.00049589,120]
[321491601,1712239875630,-506.98,0.00049589,120]
[321491602,1712239875639,-500.0,0.00049589,120]
[321491603,1712239875648,-739.27,0.00049589,120]
[321491604,1712239875660,-526.32338866,0.00049589,120]
[321491605,1712239875670,-562.41206154,0.00049589,120]
[321491606,1712239875679,-527.47111755,0.00049589,120]
[321491607,1712239875688,-500.0,0.00049589,120]
[321491608,1712239875699,-500.0,0.00049589,120]
[321491609,1712239875708,-551.64,0.00049589,120]
[321491610,1712239875717,-500.0,0.00049589,120]
[321491611,1712239875726,-600.99,0.00049589,120]
[321491612,1712239875736,-500.0,0.00049589,120]
[321491613,1712239875745,-500.0,0.00049589,120]
[321491614,1712239875755,-3487.43,0.00049589,120]
[321491615,1712239875766,-535.0,0.00049589,120]
[321491616,1712239875775,-937.6,0.00049589,120]
[321491617,1712239875784,-522.40613277,0.00049589,120]
[321491618,1712239875794,-1133.6,0.00049589,120]
[321491619,1712239875803,-500.0,0.00049589,120]
[321491620,1712239875812,-1429.94,0.00049589,120]
[321491621,1712239875821,-500.0,0.00049589,120]
[321491622,1712239875830,-551.99876956,0.00049589,120]
[321491623,1712239875840,-817.3,0.00049589,120]
[321491624,1712239875849,-517.84623636,0.00049589,120]
[321491625,1712239875858,-807.04,0.00049589,120]
[321491626,1712239875867,-500.0,0.00049589,120]
[321491627,1712239875877,-500.0,0.00049589,120]
[321491628,1712239875886,-509.61,0.00049589,120]
[321491629,1712239875895,-500.0,0.00049589,120]
[321491630,1712239875904,-260.95735987,0.00049589,120]
[321491631,1712239875913,-500.0,0.00049589,120]
[321491632,1712239875922,-500.0,0.00049589,120]
[321491633,1712239875931,-500.0,0.00049589,120]
[321491634,1712239875940,-500.0,0.00049589,120]
[321491635,1712239875949,-500.0,0.00049589,2]
[321491636,1712239875958,-500.0,0.00049589,120]
[321491637,1712239875968,-720.56,0.00049589,120]
[321491638,1712239875978,-500.0,0.00049589,120]
[321491639,1712239875987,-500.0,0.00049589,120]
[321491640,1712239875997,-518.52731621,0.00049589,120]
[321491641,1712239876006,-500.0,0.00049589,120]
[321491642,1712239876018,-1150.35,0.00049589,120]
[321491643,1712239876027,-500.0,0.00049589,120]
[321491644,1712239876037,-500.0,0.00049589,120]
[321491645,1712239876046,-500.0,0.00049589,120]
[321491646,1712239876055,-500.0,0.00049589,120]
[321491647,1712239876065,-500.0,0.00049589,120]
[321491648,1712239876074,-500.0,0.00049589,120]
[321491649,1712239876083,-500.0,0.00049589,120]
[321491650,1712239876092,-500.0,0.00049589,120]
[321491651,1712239876101,-500.0,0.00049589,120]
[321491652,1712239876110,-2047.02,0.00049589,120]
[321491653,1712239876120,-500.0,0.00049589,120]
[321491654,1712239876129,-500.0,0.00049589,120]
[321491655,1712239876139,-618.62,0.00049589,120]
[321491656,1712239876148,-1658.5,0.00049589,30]
[321491657,1712239876157,-1165.16,0.00049589,120]
[321491658,1712239876167,-500.0,0.00049589,120]
[321491659,1712239876176,-500.0,0.00049589,120]
[321491660,1712239876186,-514.12456439,0.00049589,120]
[321491661,1712239876195,-500.0,0.00049589,120]
[321491662,1712239876205,-587.57,0.00049589,120]
[321491663,1712239876213,-531.11,0.00049589,120]
[321491664,1712239876222,-753.57,0.00049589,120]
[321491665,1712239876231,-500.0,0.00049589,120]
[321491666,1712239876241,-750.04,0.00049589,120]
[321491667,1712239876250,-500.0,0.00049589,120]
[321491668,1712239876259,-500.0,0.00049589,120]
[321491669,1712239876270,-1165.86,0.00049589,120]
[321491670,1712239876279,-528.77244059,0.00049589,120]
[321491671,1712239876289,-1129.12,0.00049589,120]
[321491672,1712239876297,-500.0,0.00049589,120]
[321491673,1712239876306,-500.0,0.00049589,120]
[321491674,1712239876316,-500.0,0.00049589,120]
[321491675,1712239876325,-500.0,0.00049589,120]
[321491676,1712239876334,-524.00638584,0.00049589,120]
[321491677,1712239876344,-1143.63,0.00049589,120]
[321491678,1712239876354,-500.0,0.00049589,120]
[321491679,1712239876363,-500.0,0.00049589,120]
[321491680,1712239876373,-555.61514506,0.00049589,120]
[321491681,1712239876383,-1099.75,0.00049589,120]
[321491682,1712239876392,-518.43747165,0.00049589,120]
[321491683,1712239876401,-1263.93,0.00049589,120]
[321491684,1712239876411,-500.0,0.00049589,120]
[321491685,1712239876421,-562.06,0.00049589,120]
[321491686,1712239876430,-500.0,0.00049589,120]
[321491687,1712239876439,-500.0,0.00049589,120]
[321491688,1712239876448,-500.0,0.00049589,120]
[321491689,1712239876457,-518.25649808,0.00049589,120]
[321491690,1712239876466,-500.0,0.00049589,120]
[321491691,1712239876476,-500.0,0.00049589,120]
[321491692,1712239876485,-519.66,0.00049589,120]
[321491693,1712239876495,-1000.0,0.00049589,30]
[321491694,1712239876506,-582.2,0.00049589,120]
[321491695,1712239876518,-1015.71,0.00049589,120]
[321491696,1712239876527,-500.0,0.00049589,120]
[321491697,1712239876538,-500.0,0.00049589,120]
[321491698,1712239876548,-500.0,0.00049589,120]
[321491699,1712239876557,-500.0,0.00049589,2]
[321491700,1712239876567,-1290.41,0.00049589,120]
[321491701,1712239876577,-500.0,0.00049589,120]
[321491702,1712239876587,-500.0,0.00049589,120]
[321491703,1712239876597,-500.0,0.00049589,120]
[321491704,1712239876607,-1244.82,0.00049589,120]
[321491705,1712239876617,-500.0,0.00049589,120]
[321491706,1712239876627,-1810.36,0.00049589,120]
[321491707,1712239876636,-500.0,0.00049589,120]
[321491708,1712239876645,-500.0,0.00049589,120]
[321491709,1712239876655,-923.23,0.00049589,120]
[321491710,1712239876666,-500.0,0.00049589,120]
[321491711,1712239876676,-500.0,0.00049589,120]
[321491712,1712239876689,-500.0,0.00049589,120]
[321491713,1712239876699,-1446.83,0.00049589,120]
[321491714,1712239876709,-1276.6,0.00049589,120]
[321491715,1712239876719,-500.0,0.00049589,120]
[321491716,1712239876729,-718.91,0.00049589,120]
[321491717,1712239876738,-3457.7,0.00049589,120]
[321491718,1712239876748,-520.20038932,0.00049589,120]
[321491719,1712239876758,-537.63,0.00049589,120]
[321491720,1712239876770,-1065.5,0.00049589,120]
[321491721,1712239876779,-500.0,0.00049589,120]
[321491722,1712239876788,-500.0,0.00049589,120]
[321491723,1712239876797,-500.0,0.00049589,120]
[321491724,1712239876807,-500.0,0.00049589,120]
[321491725,1712239876816,-1333.71,0.00049589,120]
[321491726,1712239876825,-500.0,0.00049589,120]
[321491727,1712239876835,-500.0,0.00049589,120]
[321491728,1712239876845,-504.12325996,0.00049589,120]
[321491729,1712239876854,-931.69,0.00049589,120]
[321491730,1712239876864,-500.0,0.00049589,120]
[321491731,1712239876873,-500.0,0.00049589,120]
[321491732,1712239876883,-500.0,0.00049589,120]
[321491733,1712239876892,-500.0,0.00049589,120]
[321491734,1712239876901,-1104.92,0.00049589,120]
[321491735,1712239876910,-1557.69,0.00049589,120]
[321491736,1712239876919,-500.0,0.00049589,120]
[321491737,1712239876929,-500.0,0.00049589,120]
[321491738,1712239876938,-500.0,0.00049589,120]
[321491739,1712239876948,-1446.69,0.00049589,120]
[321491740,1712239876957,-702.71,0.00049589,120]
[321491741,1712239876968,-500.0,0.00049589,120]
[321491742,1712239876977,-506.14617597,0.00049589,120]
[321491743,1712239876987,-500.0,0.00049589,120]
[321491744,1712239876996,-206.01110229,0.00049589,120]
[321491745,1712239877005,-500.0,0.00049589,120]
[321491746,1712239877017,-500.0,0.00049589,120]
[321491747,1712239877026,-500.0,0.00049589,120]
[321491748,1712239877035,-2000.0,0.00049589,30]
[321491749,1712239877046,-1745.27,0.00049589,120]
[321491750,1712239877055,-1286.6,0.00049589,120]
[321491751,1712239877065,-748.01,0.00049589,120]
[321491752,1712239877074,-999.21,0.00049589,120]
[321491753,1712239877084,-1245.24,0.00049589,120]
[321491754,1712239877093,-337.93727006,0.00049589,120]
[321491755,1712239877103,-500.0,0.00049589,120]
[321491756,1712239877112,-500.0,0.00049589,120]
[321491757,1712239877122,-500.0,0.00049589,120]
[321491758,1712239877131,-1085.45,0.00049589,120]
[321491759,1712239877141,-500.0,0.00049589,120]
[321491760,1712239877150,-1455.27,0.00049589,120]
[321491761,1712239877159,-500.0,0.00049589,120]
[321491762,1712239877169,-455.97669148,0.00049589,120]
[321491763,1712239877178,-500.0,0.00049589,120]
[321491764,1712239877187,-500.0,0.00049589,120]
[321491765,1712239877197,-514.02281228,0.00049589,120]
[321491766,1712239877206,-500.0,0.00049589,120]
[321491767,1712239877215,-686.35,0.00049589,120]
[321491768,1712239877225,-295.34697693,0.00049589,120]
[321491769,1712239877235,-500.0,0.00049589,120]
[321491770,1712239877245,-500.0,0.00049589,120]
[321491771,1712239877254,-500.0,0.00049589,120]
[321491772,1712239877265,-500.0,0.00049589,120]
[321491773,1712239877275,-500.0,0.00049589,120]
[321491774,1712239877285,-730.23,0.00049589,120]
[321491775,1712239877295,-245.62441112,0.00049589,120]
[321491776,1712239877304,-1507.88,0.00049589,120]
[321491777,1712239877315,-533.57,0.00049589,120]
[321491778,1712239877325,-677.6,0.00049589,120]
[321491779,1712239877335,-1290.46,0.00049589,120]
[321491780,1712239877345,-500.0,0.00049589,120]
[321491781,1712239877354,-577.70300428,0.00049589,120]
[321491782,1712239877364,-500.0,0.00049589,120]
[321491783,1712239877374,-500.0,0.00049589,120]
[321491784,1712239877383,-151.0,0.00049589,120]
[321491785,1712239877393,-1994.21,0.00049589,120]
[321491786,1712239877404,-500.0,0.00049589,120]
[321491787,1712239877413,-1948.47,0.00049589,120]
[321491788,1712239877423,-959.62,0.00049589,120]
[321491789,1712239877433,-1592.91,0.00049589,120]
[321491790,1712239877443,-1901.5,0.00049589,120]
[321491791,1712239877453,-500.0,0.00049589,120]
[321491792,1712239877463,-500.0,0.00049589,120]
[321491793,1712239877473,-500.0,0.00049589,120]
[321491794,1712239877484,-500.0,0.00049589,120]
[321491795,1712239877494,-500.0,0.00049589,120]
[321491796,1712239877505,-500.0,0.00049589,120]
[321491797,1712239877517,-500.0,0.00049589,120]
[321491798,1712239877527,-1003.26,0.00049589,120]
[321491799,1712239877537,-1792.48,0.00049589,120]
[321491800,1712239877548,-500.0,0.00049589,120]
[321491801,1712239877558,-500.0,0.00049589,60]
[321491802,1712239877568,-500.0,0.00049589,120]
[321491803,1712239877578,-500.0,0.00049589,120]
[321491804,1712239877588,-534.21655215,0.00049589,120]
[321491805,1712239877598,-500.0,0.00049589,120]
[321491806,1712239877608,-500.0,0.00049589,120]
[321491807,1712239877619,-500.0,0.00049589,120]
[321491808,1712239877629,-500.0,0.00049589,120]
[321491809,1712239877639,-2176.63,0.00049589,120]
[321491810,1712239877649,-500.0,0.00049589,120]
[321491811,1712239877661,-517.30069418,0.00049589,120]
[321491812,1712239877672,-266.978547,0.00049589,120]
[321491813,1712239877682,-2134.92,0.00049589,120]
[321491814,1712239877693,-1508.53,0.00049589,120]
[321491815,1712239877703,-500.0,0.00049589,120]
[321491816,1712239877713,-481.1502726,0.00049589,120]
[321491817,1712239877722,-500.0,0.00049589,120]
[321491818,1712239877733,-500.0,0.00049589,120]
[321491819,1712239877744,-266.978547,0.00049589,120]
[321491820,1712239877755,-500.0,0.00049589,120]
[321491821,1712239877769,-500.0,0.00049589,2]
[321491822,1712239877780,-500.0,0.00049589,120]
[321491823,1712239877790,-301.16500429,0.00049589,120]
[321491824,1712239877800,-500.0,0.00049589,120]
[321491825,1712239877810,-162.974525,0.00049589,120]
[321491826,1712239877820,-500.0,0.00049589,120]
[321491827,1712239877830,-500.0,0.00049589,120]
[321491828,1712239877840,-563.50514887,0.00049589,120]
[321491829,1712239877856,-500.0,0.00049589,120]
[321491830,1712239877866,-500.0,0.00049589,120]
[321491831,1712239877877,-1062.68,0.00049589,120]
[321491832,1712239877886,-1295.23,0.00049589,120]
[321491833,1712239877897,-500.0,0.00049589,120]
[321491834,1712239877907,-500.0,0.00049589,120]
[321491835,1712239877917,-500.0,0.00049589,120]
[321491836,1712239877927,-500.0,0.00049589,120]
[321491837,1712239877938,-162.974525,0.00049589,120]
[321491838,1712239877949,-506.82038917,0.00049589,120]
[321491839,1712239877960,-500.0,0.00049589,120]
[321491840,1712239877979,-500.0,0.00049589,120]
[321491841,1712239877990,-500.0,0.00049589,120]
[321491842,1712239878000,-500.0,0.00049589,120]
[321491843,1712239878010,-376.8905371,0.00049589,120]
[321491844,1712239878024,-730.22,0.00049589,120]
[321491845,1712239878034,-500.0,0.00049589,120]
[321491846,1712239878044,-500.0,0.00049589,120]
[321491847,1712239878055,-500.0,0.00049589,120]
[321491848,1712239878065,-500.0,0.00049589,120]
[321491849,1712239878075,-500.0,0.00049589,120]
[321491850,1712239878087,-740.86,0.00049589,120]
[321491851,1712239878097,-518.92201287,0.00049589,120]
[321491852,1712239878108,-500.0,0.00049589,120]
[321491853,1712239878119,-512.864642,0.00049589,120]
[321491854,1712239878129,-951.59,0.00049589,120]
[321491855,1712239878139,-500.0,0.00049589,120]
[321491856,1712239878149,-151.0,0.00049589,120]
[321491857,1712239878160,-887.41,0.00049589,120]
[321491858,1712239878171,-698.65,0.00049589,120]
[321491859,1712239878181,-512.864642,0.00049589,120]
[321491860,1712239878191,-837.02,0.00049589,120]
[321491861,1712239878201,-500.0,0.00049589,120]
[321491862,1712239878213,-500.0,0.00049589,120]
[321491863,1712239878224,-151.0,0.00049589,120]
[321491864,1712239878234,-500.0,0.00049589,120]
[321491865,1712239878245,-520.79117934,0.00049589,120]
[321491866,1712239878255,-500.0,0.00049589,120]
[321491867,1712239878268,-1392.93,0.00049589,120]
[321491868,1712239878281,-500.0,0.00049589,120]
[321491869,1712239878293,-560.86,0.00049589,120]
[321491870,1712239878305,-534.80613149,0.00049589,120]
[321491871,1712239878317,-500.0,0.00049589,120]
[321491872,1712239878328,-605.58,0.00049589,120]
[321491873,1712239878339,-500.0,0.00049589,120]
[321491874,1712239878349,-1366.49,0.00049589,120]
[321491875,1712239878359,-962.52,0.00049589,120]
[321491876,1712239878369,-500.0,0.00049589,120]
[321491877,1712239878380,-151.0,0.00049589,120]
[321491878,1712239878391,-500.0,0.00049589,120]
[321491879,1712239878403,-500.0,0.00049589,120]
[321491880,1712239878413,-500.0,0.00049589,120]
[321491881,1712239878424,-151.0,0.00049589,120]
[321491882,1712239878434,-500.0,0.00049589,120]
[321491883,1712239878443,-500.0,0.00049589,120]
[321491884,1712239878453,-500.0,0.00049589,120]
[321491885,1712239878463,-500.0,0.00049589,120]
[321491886,1712239878473,-151.0,0.00049589,120]
[321491887,1712239878483,-1193.6,0.00049589,120]
[321491888,1712239878493,-500.0,0.00049589,120]
[321491889,1712239878504,-500.0,0.00049589,120]
[321491890,1712239878514,-542.38,0.00049589,120]
[321491891,1712239878525,-1084.67,0.00049589,120]
[321491892,1712239878534,-512.19239934,0.00049589,120]
[321491893,1712239878544,-512.69663916,0.00049589,120]
[321491894,1712239878556,-621.75,0.00049589,120]
[321491895,1712239878567,-500.0,0.00049589,120]
[321491896,1712239878577,-500.0,0.00049589,120]
[321491897,1712239878589,-200.284835,0.00049589,120]
[321491898,1712239878600,-500.0,0.00049589,120]
[321491899,1712239878610,-151.0,0.00049589,120]
[321491900,1712239878620,-712.66,0.00049589,120]
[321491901,1712239878630,-500.0,0.00049589,120]
[321491902,1712239878639,-514.00838817,0.00049589,120]
[321491903,1712239878650,-1353.81,0.00049589,30]
[321491904,1712239878664,-508.08105372,0.00049589,120]
[321491905,1712239878674,-1024.73,0.00049589,120]
[321491906,1712239878684,-500.0,0.00049589,120]
[321491907,1712239878694,-554.22,0.00049589,120]
[321491908,1712239878706,-500.0,0.00049589,120]
[321491909,1712239878717,-1434.93,0.00049589,120]
[321491910,1712239878727,-500.0,0.00049589,120]
[321491911,1712239878737,-525.46215903,0.00049589,120]
[321491912,1712239878746,-500.0,0.00049589,120]
[321491913,1712239878756,-500.0,0.00049589,120]
[321491914,1712239878767,-532.80395053,0.00049589,120]
[321491915,1712239878777,-513.39,0.00049589,120]
[321491916,1712239878786,-1473.76,0.00049589,120]
[321491917,1712239878796,-292.667321,0.00049589,120]
[321491918,1712239878805,-151.0,0.00049589,7]
[321491919,1712239878815,-500.0,0.00049589,120]
[321491920,1712239878825,-500.0,0.00049589,2]
[321491921,1712239878836,-500.0,0.00049589,120]
[321491922,1712239878846,-500.0,0.00049589,120]
[321491923,1712239878856,-951.41,0.00049589,120]
[321491924,1712239878867,-292.667321,0.00049589,120]
[321491925,1712239878878,-151.0,0.00049589,7]
[321491926,1712239878888,-1521.78,0.00049589,120]
[321491927,1712239878898,-1756.07,0.00049589,120]
[321491928,1712239878907,-500.0,0.00049589,120]
[321491929,1712239878918,-500.0,0.00049589,120]
[321491930,1712239878928,-151.0,0.00049589,120]
[321491931,1712239878938,-324.25436659,0.00049589,120]
[321491932,1712239878949,-500.0,0.00049589,120]
[321491933,1712239878960,-1286.48,0.00049589,120]
[321491934,1712239878970,-500.0,0.00049589,120]
[321491935,1712239878981,-637.67,0.00049589,120]
[321491936,1712239878991,-192.956329,0.00049589,120]
[321491937,1712239879001,-500.0,0.00049589,120]
[321491938,1712239879014,-500.0,0.00049589,120]
[321491939,1712239879024,-836.11,0.00049589,120]
[321491940,1712239879034,-1275.82,0.00049589,120]
[321491941,1712239879043,-556.95,0.00049589,120]
[321491942,1712239879055,-1000.0,0.00049589,120]
[321491943,1712239879066,-636.36,0.00049589,120]
[321491944,1712239879076,-500.0,0.00049589,120]
[321491945,1712239879087,-500.0,0.00049589,120]
[321491946,1712239879098,-675.35,0.00049589,120]
[321491947,1712239879109,-1269.75,0.00049589,120]
[321491948,1712239879119,-500.0,0.00049589,120]
[321491949,1712239879129,-500.0,0.00049589,120]
[321491950,1712239879139,-500.0,0.00049589,120]
[321491951,1712239879149,-638.31,0.00049589,120]
[321491952,1712239879159,-192.956329,0.00049589,120]
[321491953,1712239879169,-500.0,0.00049589,120]
[321491954,1712239879180,-500.0,0.00049589,120]
[321491955,1712239879190,-709.89,0.00049589,120]
[321491956,1712239879200,-515.67045257,0.00049589,120]
[321491957,1712239879211,-500.0,0.00049589,120]
[321491958,1712239879222,-748.51,0.00049589,120]
[321491959,1712239879233,-500.0,0.00049589,120]
[321491960,1712239879244,-535.526667,0.00049589,120]
[321491961,1712239879254,-1383.82,0.00049589,120]
[321491962,1712239879268,-500.0,0.00049589,120]
[321491963,1712239879278,-1410.22,0.00049589,120]
[321491964,1712239879287,-500.0,0.00049589,120]
[321491965,1712239879297,-1951.59,0.00049589,120]
[321491966,1712239879307,-500.0,0.00049589,120]
[321491967,1712239879317,-500.0,0.00049589,120]
[321491968,1712239879327,-1417.62,0.00049589,120]
[321491969,1712239879337,-594.92,0.00049589,120]
[321491970,1712239879348,-1337.47,0.00049589,120]
[321491971,1712239879358,-471.96747889,0.00049589,120]
[321491972,1712239879369,-500.0,0.00049589,120]
[321491973,1712239879380,-913.21,0.00049589,120]
[321491974,1712239879391,-500.0,0.00049589,120]
[321491975,1712239879401,-500.0,0.00049589,120]
[321491976,1712239879412,-598.3,0.00049589,120]
[321491977,1712239879423,-500.0,0.00049589,120]
[321491978,1712239879433,-162.79,0.00049589,120]
[321491979,1712239879444,-259.233093,0.00049589,7]
[321491980,1712239879455,-1775.91,0.00049589,120]
[321491981,1712239879699,-1316.72,0.00049589,120]
[321491982,1712239879729,-500.0,0.00049589,120]
[321491983,1712239879739,-1192.25,0.00049589,120]
[321491984,1712239879749,-514.58223713,0.00049589,120]